fUST/lending_fUST_20250717
["ID","MTS","AMOUNT","RATE_DAILY","PERIOD"]
[372791064,1752763843408,-637.26,0.00018442,2]
[372791065,1752763843415,-8555.60965006,0.00018452,2]
[372791066,1752763843422,-1242.92,0.00018711,2]
[372791067,1752763843429,-460.0,0.00018711,2]
[372791068,1752763843436,-915.79,0.00018711,2]
[372791069,1752763843444,-460.0,0.00018711,2]
[372791070,1752763843453,-560.66,0.00018711,2]
[372791071,1752763843461,-1865.21,0.00018713,2]
[372791072,1752763843469,-936.48,0.00018713,2]
[372791073,1752763843477,-460.0,0.00018713,2]
[372791074,1752763843484,-460.0,0.00018714,2]
[372791075,1752763843491,-460.0,0.00018714,2]
[372791076,1752763843499,-460.0,0.00018715,2]
[372791077,1752763843507,-1346.19,0.00018715,2]
[372791078,1752763843514,-460.0,0.00018715,2]
[372791080,1752763843522,-597.94,0.00018715,2]
[372791081,1752763843529,-460.0,0.00018716,2]
[372791082,1752763843536,-460.0,0.00018716,2]
[372791083,1752763843545,-1458.0,0.00018716,2]
[372791084,1752763843553,-485.83,0.00018716,2]
[372791085,1752763843561,-857.12,0.00018716,2]
[372791086,1752763843567,-876.28,0.00018716,2]
[372791087,1752763843575,-637.26,0.00018716,2]
[372791088,1752763843582,-151.0,0.00018726,2]
[372791089,1752763843589,-151.0,0.00018726,2]
[372791090,1752763843596,-151.0,0.00018726,2]
[372791091,1752763843603,-151.0,0.00018726,2]
[372791092,1752763843611,-151.0,0.00018726,2]
[372791093,1752763843619,-151.0,0.00018726,2]
[372791094,1752763843625,-151.0,0.00018726,2]
[372791095,1752763843632,-151.0,0.00018726,2]
[372791097,1752763843639,-151.0,0.00018726,2]
[372791098,1752763843650,-151.0,0.00018726,2]
[372791100,1752763843660,-151.0,0.00018726,2]
[372791101,1752763843669,-151.0,0.00018726,2]
[372791102,1752763843679,-151.0,0.00018726,2]
[372791103,1752763843691,-151.0,0.00018726,2]
[372791104,1752763843700,-151.0,0.00018726,2]
[372791105,1752763843709,-151.0,0.00018726,2]
[372791106,1752763843720,-151.0,0.00018726,2]
[372791107,1752763843730,-151.0,0.00018726,2]
[372791108,1752763843739,-151.0,0.00018726,2]
[372791109,1752763843748,-3801.642,0.00018726,2]
[372791110,1752763843758,-207.4,0.00018726,2]
[372791111,1752763843767,-25000.0,0.00018726,2]
[372791112,1752763843777,-151.0,0.00018726,2]
[372791113,1752763843786,-151.0,0.00018726,2]
[372791114,1752763843796,-151.0,0.00018726,2]
[372791115,1752763843805,-22821.71200311,0.00018726,2]
[372791116,1752763843814,-151.0,0.00018726,2]
[372791117,1752763843824,-151.0,0.00018726,2]
[372791118,1752763843834,-151.0,0.00018726,2]
[372791119,1752763843843,-151.0,0.00018726,2]
[372791120,1752763843853,-151.0,0.00018726,2]
[372791121,1752763843863,-151.0,0.00018726,2]
[372791123,1752763843872,-151.0,0.00018726,2]
[372791124,1752763843883,-151.0,0.00018726,2]
[372791125,1752763843894,-151.0,0.00018726,2]
[372791126,1752763843904,-151.0,0.00018726,2]
[372791127,1752763843914,-159.14388846,0.00018726,2]
[372791128,1752763843923,-151.0,0.00018726,2]
[372791129,1752763843933,-8555.60965006,0.00018762,2]
[372791130,1752763843942,-900.0,0.00018769,2]
[372791131,1752763843951,-3942.302754,0.00018781,2]
[372791132,1752763843959,-1000.0,0.00018805,2]
[372791133,1752763843968,-724.31412617,0.00018836,2]
[372791134,1752763843977,-360.0,0.0001886,2]
[372791135,1752763843985,-5768.50413722,0.000189,2]
[372791136,1752763843995,-1242.92,0.00018985,2]
[372791137,1752763844003,-275.4986302,0.00018985,2]
[372791138,1752763844012,-915.79,0.00018985,2]
[372791139,1752763844022,-460.0,0.00018985,2]
[372791140,1752763844031,-560.66,0.00018985,2]
[372791141,1752763844040,-1865.21,0.00018987,2]
[372791142,1752763844050,-936.48,0.00018987,2]
[372791143,1752763844059,-460.0,0.00018987,2]
[372791144,1752763844068,-460.0,0.00018988,2]
[372791145,1752763844077,-460.0,0.00018988,2]
[372791146,1752763844085,-460.0,0.00018989,2]
[372791147,1752763844094,-1346.19,0.00018989,2]
[372791148,1752763844103,-318.37,0.00018989,2]
[372791149,1752763844112,-597.94,0.00018989,2]
[372791150,1752763844121,-460.0,0.0001899,2]
[372791151,1752763844130,-460.0,0.0001899,2]
[372791152,1752763844138,-1458.0,0.0001899,2]
[372791153,1752763844146,-485.83,0.0001899,2]
[372791154,1752763844156,-857.12,0.0001899,2]
[372791155,1752763844165,-876.28,0.0001899,2]
[372791156,1752763844174,-637.26,0.0001899,2]
[372791157,1752763844185,-215.98455409,0.00019,5]
[372791158,1752763844195,-8555.60965006,0.00019072,2]
[372791159,1752763844205,-500.0,0.00019178,2]
[372791160,1752763844214,-518.56083965,0.00019178,2]
[372791161,1752763844224,-495.2433917,0.00019178,2]
[372791162,1752763844233,-803.950288,0.00019178,2]
[372791163,1752763844243,-1242.92,0.00019259,2]
[372791164,1752763844251,-915.79,0.00019259,2]
[372791165,1752763844260,-460.0,0.00019259,2]
[372791166,1752763844269,-560.66,0.00019259,2]
[372791167,1752763844278,-1865.21,0.00019261,2]
[372791168,1752763844287,-936.48,0.00019261,2]
[372791169,1752763844297,-460.0,0.00019261,2]
[372791170,1752763844307,-460.0,0.00019262,2]
[372791171,1752763844317,-460.0,0.00019262,2]
[372791172,1752763844326,-460.0,0.00019263,2]
[372791173,1752763844335,-1346.19,0.00019263,2]
[372791174,1752763844344,-597.94,0.00019263,2]
[372791175,1752763844353,-460.0,0.00019264,2]
[372791176,1752763844363,-460.0,0.00019264,2]
[372791177,1752763844372,-1458.0,0.00019264,2]
[372791178,1752763844381,-485.83,0.00019264,2]
[372791179,1752763844390,-857.12,0.00019264,2]
[372791180,1752763844399,-876.28,0.00019264,2]
[372791181,1752763844408,-637.26,0.00019264,2]
[372791182,1752763844417,-25000.0,0.00019274,2]
[372791183,1752763844427,-151.0,0.00019274,2]
[372791184,1752763844437,-1721.25549787,0.00019285,2]
[372791185,1752763844446,-100000.0,0.00019329,2]
[372791186,1752763844456,-179.9820018,0.00019337,2]
[372791187,1752763844466,-5000.0,0.00019346,2]
[372791188,1752763844475,-505.05020048,0.00019373,2]
[372791189,1752763844485,-501.89293347,0.00019373,2]
[372791190,1752763844494,-500.0,0.00019373,2]
[372791191,1752763844504,-500.0,0.00019373,2]
[372791192,1752763844513,-500.0,0.00019373,2]
[372791193,1752763844523,-500.0,0.00019373,2]
[372791194,1752763844532,-500.0,0.00019373,2]
[372791195,1752763844542,-501.36560506,0.00019373,2]
[372791196,1752763844551,-8555.60965006,0.00019383,2]
[372791197,1752763844561,-460.0,0.00019408,2]
[372791198,1752763844570,-3036.14865524,0.00019411,2]
[372791199,1752763844580,-292.5,0.00019445,3]
[372791200,1752763844589,-500.0,0.00019485,2]
[372791201,1752763844599,-1242.92,0.00019533,2]
[372791202,1752763844608,-915.79,0.00019533,2]
[372791203,1752763844744,-460.0,0.00019533,2]
[372791204,1752763844755,-560.66,0.00019533,2]
[372791205,1752763844764,-1865.21,0.00019535,2]
[372791206,1752763844773,-936.48,0.00019535,2]
[372791207,1752763844782,-460.0,0.00019535,2]
[372791208,1752763844791,-460.0,0.00019536,2]
[372791209,1752763844802,-460.0,0.00019536,2]
[372791210,1752763844811,-260.87,0.00019537,2]
[372791211,1752763844820,-1346.19,0.00019537,2]
[372791212,1752763844830,-597.94,0.00019537,2]
[372791213,1752763844839,-460.0,0.00019538,2]
[372791214,1752763844848,-460.0,0.00019538,2]
[372791215,1752763844857,-1458.0,0.00019538,2]
[372791216,1752763844867,-485.83,0.00019538,2]
[372791217,1752763844876,-857.12,0.00019538,2]
[372791218,1752763844886,-876.28,0.00019538,2]
[372791219,1752763844895,-637.26,0.00019538,2]
[372791220,1752763844905,-3036.14865524,0.00019604,2]
[372791221,1752763844914,-8555.60965006,0.00019693,2]
[372791222,1752763844923,-320.558661,0.00019714,2]
[372791223,1752763844934,-587.0,0.00019724,2]
[372791224,1752763844944,-1242.92,0.00019807,2]
[372791225,1752763844954,-915.79,0.00019807,2]
[372791226,1752763844963,-460.0,0.00019807,2]
[372791227,1752763844972,-560.66,0.00019807,2]
[372791228,1752763844981,-1865.21,0.00019809,2]
[372791229,1752763844991,-936.48,0.00019809,2]
[372791230,1752763845000,-460.0,0.00019809,2]
[372791231,1752763845009,-460.0,0.0001981,2]
[372791232,1752763845019,-460.0,0.0001981,2]
[372791233,1752763845031,-1346.19,0.00019811,2]
[372791234,1752763845040,-597.94,0.00019811,2]
[372791235,1752763845049,-460.0,0.00019812,2]
[372791236,1752763845059,-460.0,0.00019812,2]
[372791237,1752763845069,-1458.0,0.00019812,2]
[372791238,1752763845079,-485.83,0.00019812,2]
[372791239,1752763845088,-857.12,0.00019812,2]
[372791240,1752763845097,-876.28,0.00019812,2]
[372791241,1752763845107,-637.26,0.00019812,2]
[372791242,1752763845116,-25000.0,0.00019822,2]
[372791243,1752763845126,-151.0,0.00019822,2]
[372791244,1752763845136,-292.5,0.00019832,3]
[372791245,1752763845143,-900.0,0.00019865,2]
[372791246,1752763845151,-500.0,0.00019891,2]
[372791247,1752763845158,-500.0,0.00019891,2]
[372791248,1752763845165,-500.0,0.00019891,2]
[372791249,1752763845172,-501.97751132,0.00019891,2]
[372791250,1752763845180,-1000.0,0.00019921,2]
[372791251,1752763845188,-1000.0,0.00019921,2]
[372791252,1752763845196,-1000.0,0.00019921,2]
[372791253,1752763845206,-1000.0,0.00019921,2]
[372791254,1752763845216,-560.0,0.00019956,2]
[372791255,1752763845226,-3036.14865524,0.00019978,2]
[372791256,1752763845235,-14300.23978458,0.0002,2]
[372791257,1752763845245,-500.0,0.0002,2]
[372791258,1752763845255,-500.0,0.0002,2]
[372791259,1752763845264,-500.0,0.0002,2]
[372791260,1752763845273,-8555.60965006,0.00020003,2]
[372791261,1752763845283,-513.81040375,0.00020033,2]
[372791262,1752763845402,-486.18959625,0.00020033,2]
[372791263,1752763845411,-1242.92,0.00020081,2]
[372791264,1752763845420,-915.79,0.00020081,2]
[372791265,1752763845430,-460.0,0.00020081,2]
[372791266,1752763845439,-560.66,0.00020081,2]
[372791267,1752763845448,-1865.21,0.00020083,2]
[372791268,1752763845458,-936.48,0.00020083,2]
[372791269,1752763845467,-3.18606414,0.00020083,2]
[372791270,1752763845478,-325.76237576,0.00020083,2]
[372791271,1752763845491,-131.0515601,0.00020083,2]
[372791272,1752763845500,-460.0,0.00020084,2]
[372791273,1752763845509,-460.0,0.00020084,2]
[372791274,1752763845519,-1346.19,0.00020085,2]
[372791275,1752763845528,-597.94,0.00020085,2]
[372791276,1752763845536,-460.0,0.00020086,2]
[372791277,1752763845545,-460.0,0.00020086,2]
[372791278,1752763845554,-1458.0,0.00020086,2]
[372791279,1752763845564,-485.83,0.00020086,2]
[372791280,1752763845573,-239.9884399,0.00020086,2]
[372791286,1752763846221,-460.0,0.00016524,2]
[372791287,1752763846229,-460.0,0.00017344,2]
[372791288,1752763846237,-460.0,0.00017618,2]
[372791290,1752763846245,-460.0,0.00017892,2]
[372791291,1752763846254,-460.0,0.00018166,2]
[372791292,1752763846263,-460.0,0.0001844,2]
[372791293,1752763846272,-460.0,0.00018714,2]
[372791294,1752763846282,-151.0,0.00018726,2]
[372791295,1752763846292,-151.0,0.00018726,2]
[372791296,1752763846302,-460.0,0.00018988,2]
[372791298,1752763846312,-212.13147826,0.00020086,2]
[372791299,1752763846325,-298.23569615,0.00020086,2]
[372791300,1752763846336,-106.76438569,0.00020086,2]
[372791301,1752763846346,-386.51817584,0.00020086,2]
[372791302,1752763846436,-329.99917035,0.00016523,2]
[372791303,1752763846448,-130.00082965,0.00016523,2]
[372791304,1752763846458,-460.0,0.00016797,2]
[372791305,1752763846468,-460.0,0.00017071,2]
[372791306,1752763846478,-25.4878173,0.00017345,2]
[372791307,1752763846490,-434.5121827,0.00017345,2]
[372791308,1752763846500,-460.0,0.00017619,2]
[372791310,1752763846510,-151.0,0.00018726,2]
[372791311,1752763846520,-151.0,0.00018726,2]
[372791313,1752763846529,-423.09,0.00019262,2]
[372791314,1752763846538,-489.76182416,0.00020086,2]
[372791315,1752763846546,-637.26,0.00020086,2]
[372791316,1752763846555,-215.0738,0.00020095,2]
[372791317,1752763846564,-3036.14865524,0.00020101,2]
[372791318,1752763846573,-312.0,0.00020104,2]
[372791319,1752763846582,-632.777691,0.00020187,2]
[372791320,1752763846591,-292.5,0.00020218,3]
[372791321,1752763846599,-9839.10309465,0.00020229,2]
[372791322,1752763846608,-154.54751433,0.00020247,2]
[372791323,1752763846617,-406.81652412,0.00020279,2]
[372791324,1752763846626,-2897.90142008,0.00020314,3]
[372791325,1752763846637,-423.89412164,0.00020314,3]
[372791326,1752763846652,-5233.81410834,0.00020314,3]
[372791327,1752763846662,-1721.25549787,0.0002032,2]
[372791328,1752763846671,-1242.92,0.00020355,2]
[372791329,1752763846679,-915.79,0.00020355,2]
[372791330,1752763846689,-460.0,0.00020355,2]
[372791331,1752763846695,-560.66,0.00020355,2]
[372791332,1752763846702,-1865.21,0.00020357,2]
[372791333,1752763846711,-936.48,0.00020357,2]
[372791334,1752763846719,-460.0,0.00020357,2]
[372791335,1752763846729,-460.0,0.00020358,2]
[372791336,1752763846736,-201.94764359,0.00020358,2]
[372791337,1752763846744,-1346.19,0.00020359,2]
[372791339,1752763846751,-597.94,0.00020359,2]
[372791341,1752763846760,-460.0,0.0002036,2]
[372791343,1752763846769,-460.0,0.0002036,2]
[372791345,1752763846779,-1458.0,0.0002036,2]
[372791346,1752763846788,-857.12,0.0002036,2]
[372791347,1752763846798,-876.28,0.0002036,2]
[372791348,1752763846808,-637.26,0.0002036,2]
[372791349,1752763846818,-517.73282195,0.0002036,2]
[372791350,1752763846827,-787.70628642,0.00020361,2]
[372791351,1752763846836,-3150.82514569,0.00020361,2]
[372791352,1752763846846,-7082.26722122,0.00020361,2]
[372791353,1752763846855,-8503.27355154,0.00020361,2]
[372791354,1752763846865,-3036.14865525,0.00020386,2]
[372791355,1752763846875,-1000.0,0.00020439,2]
[372791356,1752763846885,-1000.0,0.00020439,2]
[372791357,1752763846895,-312.0,0.00020439,2]
[372791358,1752763846904,-1500.0,0.00020468,2]
[372791359,1752763846913,-1500.0,0.00020468,2]
[372791360,1752763846922,-1500.0,0.00020468,2]
[372791361,1752763846931,-1170.74364772,0.00020468,2]
[372791362,1752763846943,-800.0,0.00020475,2]
[372791363,1752763846952,-660.0,0.00020504,2]
[372791364,1752763846961,-312.0,0.00020516,2]
[372791365,1752763846970,-1000.0,0.00020548,2]
[372791366,1752763846979,-1000.0,0.00020548,2]
[372791367,1752763846987,-1051.95579571,0.00020581,2]
[372791368,1752763846997,-250.0,0.00020601,2]
[372791369,1752763847006,-292.5,0.00020605,3]
[372791370,1752763847015,-8555.60965006,0.00020624,3]
[372791371,1752763847023,-1242.92,0.00020629,2]
[372791372,1752763847032,-915.79,0.00020629,2]
[372791373,1752763847042,-460.0,0.00020629,2]
[372791374,1752763847050,-560.66,0.00020629,2]
[372791375,1752763847059,-1865.21,0.00020631,2]
[372791376,1752763847068,-22.46230661,0.00020631,2]
[372791377,1752763847141,-423.58,0.00017893,2]
[372791378,1752763847150,-151.0,0.00018726,2]
[372791379,1752763847159,-151.0,0.00018726,2]
[372791380,1752763847168,-151.0,0.00018726,2]
[372791381,1752763847177,-914.01769339,0.00020631,2]
[372791382,1752763847188,-460.0,0.00020631,2]
[372791383,1752763847195,-460.0,0.00020632,2]
[372791384,1752763847201,-1346.19,0.00020633,2]
[372791385,1752763847207,-597.94,0.00020633,2]
[372791386,1752763847214,-365.09839026,0.00020634,2]
[372791387,1752763847220,-460.0,0.00020634,2]
[372791388,1752763847227,-1458.0,0.00020634,2]
[372791389,1752763847234,-857.12,0.00020634,2]
[372791390,1752763847241,-876.28,0.00020634,2]
[372791391,1752763847249,-637.26,0.00020634,2]
[372791392,1752763847256,-12607.95677342,0.00020659,3]
[372791393,1752763847263,-214.44804168,0.00020659,3]
[372791394,1752763847270,-320.558661,0.00020659,3]
[372791395,1752763847277,-800.0,0.00020668,2]
[372791396,1752763847284,-312.0,0.0002069,2]
[372791397,1752763847291,-188.94330743,0.000207,2]
[372791398,1752763847299,-153.0,0.000207,2]
[372791399,1752763847306,-1461.19522023,0.000207,2]
[372791400,1752763847312,-153.0,0.000207,2]
[372791401,1752763847319,-153.0,0.000207,2]
[372791402,1752763847328,-153.0,0.000207,2]
[372791403,1752763847336,-153.0,0.000207,2]
[372791404,1752763847343,-153.0,0.000207,2]
[372791405,1752763847350,-153.0,0.000207,2]
[372791406,1752763847358,-153.0,0.000207,2]
[372791407,1752763847366,-312.0,0.00020737,2]
[372791408,1752763847374,-10523.63010915,0.00020739,2]
[372791409,1752763847382,-896.80944,0.00020739,2]
[372791410,1752763847388,-896.80944,0.00020739,2]
[372791411,1752763847396,-151.0,0.00020739,2]
[372791412,1752763847403,-151.0,0.00020739,2]
[372791413,1752763847411,-953.31144595,0.00020836,2]
[372791414,1752763847417,-89.53497749,0.00020895,2]
[372791415,1752763847427,-2455.46502251,0.00020895,2]
[372791416,1752763847436,-1242.92,0.00020903,2]
[372791417,1752763847443,-915.79,0.00020903,2]
[372791418,1752763847450,-460.0,0.00020903,2]
[372791419,1752763847562,-560.66,0.00020903,2]
[372791420,1752763847571,-1865.21,0.00020905,2]
[372791421,1752763847580,-936.48,0.00020905,2]
[372791422,1752763847589,-460.0,0.00020905,2]
[372791423,1752763847598,-460.0,0.00020906,2]
[372791424,1752763847607,-1346.19,0.00020907,2]
[372791425,1752763847616,-597.94,0.00020907,2]
[372791426,1752763847625,-460.0,0.00020908,2]
[372791427,1752763847633,-1458.0,0.00020908,2]
[372791428,1752763847642,-857.12,0.00020908,2]
[372791429,1752763847655,-876.28,0.00020908,2]
[372791430,1752763847664,-637.26,0.00020908,2]
[372791431,1752763847674,-8555.60965006,0.00020934,4]
[372791432,1752763847683,-900.0,0.00020961,2]
[372791433,1752763847693,-320.558661,0.0002098,2]
[372791434,1752763847702,-613.72738664,0.00020987,2]
[372791435,1752763847711,-1311.52945269,0.00020987,2]
[372791436,1752763847720,-292.5,0.00020991,4]
[372791437,1752763847730,-2000.0,0.00021016,2]
[372791438,1752763847739,-2000.0,0.00021016,2]
[372791439,1752763847747,-1107.1850976,0.00021016,2]
[372791440,1752763847757,-2545.0,0.00021026,2]
[372791441,1752763847766,-151.0,0.00021026,2]
[372791442,1752763847775,-760.0,0.00021052,2]
[372791443,1752763847784,-151.0,0.00021077,2]
[372791444,1752763847793,-151.0,0.00021077,2]
[372791445,1752763847802,-4144.532704,0.00021077,2]
[372791446,1752763847813,-4144.532704,0.00021077,2]
[372791447,1752763847822,-2545.0,0.00021077,2]
[372791448,1752763847831,-1500.0,0.00021096,2]
[372791449,1752763847840,-320.558661,0.00021141,4]
[372791450,1752763847849,-307.9988728,0.00021164,2]
[372791451,1752763847858,-1242.92,0.00021176,2]
[372791452,1752763847868,-915.79,0.00021176,2]
[372791453,1752763847877,-460.0,0.00021176,2]
[372791454,1752763847887,-560.66,0.00021176,2]
[372791455,1752763847897,-1865.21,0.00021179,2]
[372791456,1752763847907,-936.48,0.00021179,2]
[372791457,1752763847921,-460.0,0.00021179,2]
[372791458,1752763847930,-460.0,0.0002118,2]
[372791459,1752763847941,-1346.19,0.00021181,2]
[372791460,1752763847950,-597.94,0.00021181,2]
[372791461,1752763847960,-541.61832873,0.00021182,2]
[372791462,1752763847970,-1458.0,0.00021182,2]
[372791463,1752763847979,-857.12,0.00021182,2]
[372791464,1752763847989,-876.28,0.00021182,2]
[372791465,1752763847998,-637.26,0.00021182,2]
[372791466,1752763848008,-682.536,0.00021222,2]
[372791467,1752763848018,-2155.0,0.00021222,2]
[372791468,1752763848028,-407.0,0.00021222,2]
[372791469,1752763848037,-414.376,0.00021222,2]
[372791470,1752763848047,-968.0,0.00021222,2]
[372791471,1752763848057,-4975.0,0.00021236,2]
[372791472,1752763848067,-8555.60965006,0.00021245,4]
[372791473,1752763848077,-1721.25549787,0.00021355,2]
[372791474,1752763848086,-292.5,0.00021378,4]
[372791475,1752763848097,-2545.0,0.00021381,2]
[372791476,1752763848106,-2545.0,0.00021428,2]
[372791477,1752763848118,-1242.92,0.0002145,2]
[372791478,1752763848127,-915.79,0.0002145,2]
[372791479,1752763848138,-460.0,0.0002145,2]
[372791480,1752763848147,-560.66,0.0002145,2]
[372791481,1752763848158,-1865.21,0.00021453,2]
[372791482,1752763848171,-936.48,0.00021453,2]
[372791483,1752763848181,-460.0,0.00021453,2]
[372791484,1752763848192,-230.26179215,0.00021454,2]
[372791485,1752763848203,-163.705267,0.00021455,2]
[372791486,1752763848213,-163.705267,0.00021455,2]
[372791487,1752763848223,-1346.19,0.00021455,2]
[372791488,1752763848233,-597.94,0.00021455,2]
[372791489,1752763848243,-1458.0,0.00021456,2]
[372791490,1752763848253,-857.12,0.00021456,2]
[372791491,1752763848263,-876.28,0.00021456,2]
[372791492,1752763848274,-637.26,0.00021456,2]
[372791493,1752763848284,-320.558661,0.00021458,3]
[372791494,1752763848295,-223.0315306,0.00021464,2]
[372791495,1752763848305,-312.0,0.00021487,2]
[372791496,1752763848316,-151.0,0.000215,2]
[372791497,1752763848325,-621.6233864,0.000215,4]
[372791498,1752763848335,-10315.58859926,0.000215,2]
[372791499,1752763848345,-1698.46,0.000215,2]
[372791500,1752763848354,-151.0,0.000215,4]
[372791501,1752763848363,-823.0,0.00021554,2]
[372791502,1752763848373,-8555.60965006,0.00021555,5]
[372791503,1752763848383,-2500.0,0.00021564,2]
[372791504,1752763848392,-2500.0,0.00021564,2]
[372791505,1752763848401,-860.0,0.000216,2]
[372791506,1752763848414,-2545.0,0.00021607,2]
[372791507,1752763848424,-2000.0,0.00021644,2]
[372791508,1752763848434,-2545.0,0.00021693,2]
[372791509,1752763848444,-1242.92,0.00021724,2]
[372791510,1752763848454,-915.79,0.00021724,2]
[372791511,1752763848463,-460.0,0.00021724,2]
[372791512,1752763848474,-560.66,0.00021724,2]
[372791513,1752763848484,-312.0,0.00021725,2]
[372791514,1752763848494,-1865.21,0.00021727,2]
[372791515,1752763848503,-936.48,0.00021727,2]
[372791516,1752763848513,-460.0,0.00021727,2]
[372791517,1752763848523,-1346.19,0.00021729,2]
[372791518,1752763848533,-597.94,0.00021729,2]
[372791519,1752763848543,-1458.0,0.0002173,2]
[372791520,1752763848552,-857.12,0.0002173,2]
[372791521,1752763848562,-876.28,0.0002173,2]
[372791522,1752763848571,-637.26,0.0002173,2]
[372791523,1752763848581,-1000.0,0.00021751,5]
[372791524,1752763848591,-292.5,0.00021764,4]
[372791525,1752763848600,-312.0,0.00021777,2]
[372791526,1752763848610,-2545.0,0.00021779,2]
[372791527,1752763848619,-500.0,0.000218,2]
[372791528,1752763848629,-500.0,0.0002184,2]
[372791529,1752763848639,-312.0,0.00021859,2]
[372791530,1752763848652,-1577.57057758,0.00021865,2]
[372791531,1752763848662,-8555.60965006,0.00021866,6]
[372791532,1752763848672,-500.0,0.00021869,2]
[372791533,1752763848682,-2545.0,0.00021907,2]
[372791534,1752763848694,-2545.0,0.00021918,2]
[372791535,1752763848704,-151.0,0.00021918,2]
[372791536,1752763848714,-151.0,0.00021918,2]
[372791537,1752763848724,-347.44878007,0.00021918,2]
[372791538,1752763848738,-179.37146608,0.00021918,2]
[372791539,1752763848754,-4975.0,0.0002195,2]
[372791540,1752763848764,-3193.09999998,0.00021998,2]
[372791541,1752763848773,-1242.92,0.00021998,2]
[372791542,1752763848783,-915.79,0.00021998,2]
[372791543,1752763848793,-460.0,0.00021998,2]
[372791544,1752763848803,-560.66,0.00021998,2]
[372791545,1752763848813,-3911.68,0.00022,7]
[372791546,1752763848823,-7545.83,0.00022,7]
[372791547,1752763848832,-1000.0,0.00022,2]
[372791548,1752763848842,-1000.0,0.00022,2]
[372791549,1752763848851,-1000.0,0.00022,2]
[372791550,1752763848860,-1000.0,0.00022,2]
[372791551,1752763848870,-1000.0,0.00022,2]
[372791552,1752763848879,-1000.0,0.00022,2]
[372791553,1752763848888,-765.14,0.00022,2]
[372791554,1752763848898,-320.558661,0.00022,15]
[372791555,1752763848908,-151.0,0.00022,2]
[372791556,1752763848916,-223.0,0.00022,2]
[372791557,1752763848926,-1865.21,0.00022001,2]
[372791558,1752763848935,-936.48,0.00022001,2]
[372791559,1752763848945,-460.0,0.00022001,2]
[372791560,1752763848955,-1346.19,0.00022003,2]
[372791561,1752763848964,-597.94,0.00022003,2]
[372791562,1752763848974,-1458.0,0.00022004,2]
[372791563,1752763848984,-857.12,0.00022004,2]
[372791564,1752763848993,-876.28,0.00022004,2]
[372791565,1752763849003,-637.26,0.00022004,2]
[372791566,1752763849012,-896.80944,0.00022005,7]
[372791567,1752763849022,-896.80944,0.00022005,7]
[372791568,1752763849031,-151.0,0.00022005,7]
[372791569,1752763849040,-151.0,0.00022005,7]
[372791570,1752763849050,-2545.0,0.00022018,2]
[372791571,1752763849059,-1305.985545,0.00022039,8]
[372791572,1752763849069,-320.558661,0.00022041,4]
[372791573,1752763849078,-2545.0,0.00022044,2]
[372791574,1752763849088,-2545.0,0.00022047,2]
[372791575,1752763849098,-900.0,0.00022057,2]
[372791576,1752763849107,-306.0,0.00022062,2]
[372791577,1752763849117,-800.0,0.00022089,2]
[372791578,1752763849126,-151.0,0.000221,10]
[372791579,1752763849136,-3000.0,0.00022112,2]
[372791580,1752763849145,-3000.0,0.00022112,2]